bitfinex-derivatives/quotes_SOLF0:USTF0_20240815
["timestamp","ask_amount","ask_price","bid_price","bid_amount"]
[1723745466890,0.04629757,140.05,140.02,30.72]
[1723745467191,0.04629757,140.05,140.04,3.5695]
[1723745467796,30.72,140.15,140.02,41.24]
[1723745468094,30.72,140.1,140.02,10.52]
[1723745468294,3.5682,140.09,140.01,3.5701]
[1723745468794,30.72,140.08,140.0,3.5703]
[1723745469088,30.72,140.06,139.97,13.1717]
[1723745469290,10.54,140.13,139.97,10.52]
[1723745469291,30.72,140.03,139.97,10.52]
[1723745469494,30.72,140.03,139.93,3.52117586]
[1723745469495,30.72,140.06,139.95,30.72]
[1723745469791,0.04525953,140.06,140.04,0.04842615]
[1723745469991,30.76525953,140.06,140.04,0.00022615]
[1723745470491,30.72,140.06,139.96,3.5713]
[1723745470695,10.54,140.13,139.93,3.65032131]
[1723745470696,30.72,140.03,139.93,3.65032131]
[1723745471000,30.72,140.06,139.93,30.72]
[1723745471295,30.72,140.03,139.92,14.0904298]
[1723745471492,34.2898,140.03,139.95,3.5716]
[1723745471689,34.2898,140.03,139.92,10.54]
[1723745471885,0.053148,139.99,139.97,0.05203955]
[1723745474996,30.72,139.98,139.87,1.3726]
[1723745475193,30.72,139.95,139.85,1.3474]
[1723745475391,30.72,139.92,139.79,41.26]
[1723745475589,3.5733,139.9,139.79,30.72]
[1723745475794,30.72,139.89,139.8,3.52083472]
[1723745475994,30.72,139.94,139.8,30.72]
[1723745476298,30.72,139.96,139.82,30.72]
[1723745476799,0.05397292,139.88,139.83,0.05047323]
[1723745477204,30.72,139.84,139.83,0.05047323]
[1723745477496,30.72,139.84,139.55,10.7461]
[1723745477497,61.44,139.75,139.55,7.46958772]
[1723745477703,30.72,139.69,139.54,3.5443974]
[1723745477999,30.72,139.69,139.56,30.72]
[1723745478200,30.72,139.67,139.48,1.37]
[1723745478401,30.72,139.67,139.5,1.3415]
[1723745478596,30.72,139.62,139.5,1.3415]
[1723745479002,30.72,139.62,139.61,0.04119372]
[1723745479503,61.44,139.62,139.47,98.96897513]
[1723745479798,23.611,139.54,139.47,98.90897513]
[1723745480004,23.611,139.51,139.47,98.90897513]
[1723745480195,30.72,139.58,139.47,98.90897513]
[1723745480396,3.55966806,139.61,139.48,30.72]
[1723745480701,30.72,139.66,139.47,98.90897513]
[1723745480702,30.72,139.56,139.47,98.90897513]
[1723745481002,34.3038,139.49,139.47,98.90897513]
[1723745481200,30.72,139.49,139.36,11.36]
[1723745481406,30.72,139.51,139.37,30.72]
[1723745481701,30.72,139.53,139.35,3.64667285]
[1723745481902,30.72,139.53,139.38,30.72]
[1723745482109,30.72,139.5,139.42,3.5852]
[1723745482403,30.72,139.53,139.4,30.72]
[1723745482592,0.04810896,139.54,139.46,30.72]
[1723745482793,0.04810896,139.54,139.44,2.5357]
[1723745483006,64.2884859,139.65,139.48,30.72]
[1723745483201,64.2884859,139.65,139.44,31.1157]
[1723745483498,30.72,139.68,139.53,30.72]
[1723745483700,30.72,139.7,139.58,30.72]
[1723745483902,30.72,139.73,139.61,30.72]
[1723745484096,30.72,139.76,139.63,30.72]
[1723745484296,30.72,139.72,139.63,1.3811]
[1723745484495,30.72,139.8,139.59,1.25]
[1723745484496,30.72,139.7,139.59,1.25]
[1723745485204,0.04944958,139.68,139.59,1.25]
[1723745485400,0.04944958,139.68,139.59,12.61]
[1723745485995,0.04944958,139.68,139.63,30.72]
[1723745486200,0.04944958,139.68,139.67,3.5789]
[1723745486393,30.72,139.73,139.6,31.72]
[1723745486797,30.72,139.76,139.62,30.72]
[1723745487198,30.72,139.76,139.7,3.5779]
[1723745487399,30.72,139.78,139.65,30.72]
[1723745487591,30.72,139.78,139.76,3.5766]
[1723745487794,30.72,139.78,139.68,11.36]
[1723745487997,0.04612783,139.74,139.68,11.36]
[1723745488504,30.72,139.73,139.68,11.36]
[1723745488803,0.04612783,139.74,139.68,11.36]
[1723745489005,30.72,139.73,139.6,1.0]
[1723745489205,30.72,139.73,139.61,11.36]
[1723745489407,30.72,139.75,139.61,11.36]
[1723745489597,30.72,139.75,139.62,30.72]
[1723745490704,0.04524848,139.68,139.62,30.72]
[1723745490898,0.04524848,139.68,139.67,3.5789]
[1723745491909,0.04524848,139.68,139.65,3.5793]
[1723745492111,30.76524848,139.68,139.61,11.36]
[1723745492306,30.72,139.66,139.57,1.3811]
[1723745492707,0.04524848,139.68,139.58,3.51154104]
[1723745492905,30.72,139.73,139.57,1.3811]
[1723745493099,30.72,139.73,139.67,3.5787]
[1723745493304,30.72,139.73,139.57,1.3811]
[1723745493505,0.05191883,139.65,139.58,3.56913074]
[1723745493814,0.05191883,139.65,139.64,3.5797]
[1723745494013,0.05191883,139.65,139.57,1.3811]
[1723745494305,30.72,139.65,139.54,11.36]
[1723745494507,30.72,139.58,139.45,42.08]
[1723745494704,23.611,139.58,139.56,3.5816]
[1723745494907,16.502,139.58,139.47,28.6]
[1723745495209,30.72,139.58,139.45,42.08]
[1723745495409,16.502,139.58,139.45,42.08]
[1723745495609,16.48,139.47,139.44,3.5846]
[1723745495908,30.77374631,139.58,139.36,30.72]
[1723745496206,23.611,139.54,139.49,3.5834]
[1723745496409,16.502,139.54,139.41,3.56417271]
[1723745496611,30.72,139.59,139.45,30.72]
[1723745496804,30.72,139.73,139.48,30.72]
[1723745497004,16.502,139.59,139.49,11.36]
[1723745497211,30.72,139.62,139.55,3.5818]
[1723745497416,30.72,139.62,139.5,3.64976094]
[1723745497610,30.72,139.65,139.54,11.36]
[1723745497810,30.72,139.67,139.54,30.72]
[1723745498110,30.72,139.62,139.48,30.72]
[1723745498308,30.72,139.62,139.49,11.36]
[1723745498710,0.05296382,139.62,139.53,30.72]
[1723745498912,0.05296382,139.62,139.5,30.72]
[1723745499311,30.72,139.61,139.42,8.1707]
[1723745499512,30.72,139.61,139.46,31.9924]
[1723745499709,30.72,139.59,139.45,3.55055735]
[1723745499903,23.611,139.56,139.43,1.31]
[1723745500109,30.72,139.64,139.43,1.31]
[1723745500310,30.72,139.54,139.36,19.0138]
[1723745500510,30.72,139.58,139.39,30.72]
[1723745500814,30.72,139.55,139.37,1.0]
[1723745501017,30.72,139.5,139.37,1.0]
[1723745501318,30.72,139.48,139.36,30.72]
[1723745501517,30.72,139.5,139.37,3.61537991]
[1723745501710,0.04556701,139.45,139.42,0.05104937]
[1723745502012,0.04556701,139.45,139.44,3.5848]
[1723745502205,30.72,139.53,139.4,11.84]
[1723745502409,30.72,139.53,139.47,3.5839]
[1723745502805,0.0529711,139.46,139.43,0.04635064]
[1723745503009,0.0529711,139.46,139.45,3.5846]
[1723745503307,30.72,139.53,139.41,3.49361377]
[1723745503507,30.72,139.53,139.4,11.84]
[1723745503713,30.72,139.53,139.44,0.0519448]
[1723745503918,42.56,139.58,139.44,30.7719448]
[1723745504117,30.72,139.61,139.45,1.3076]
[1723745504305,30.72,139.58,139.45,2.573]
[1723745504818,16.492,139.64,139.46,30.72]
[1723745504819,30.72,139.61,139.46,30.72]
[1723745505713,0.0516303,139.55,139.52,0.04859161]
[1723745505913,0.0516303,139.55,139.54,3.5823]
[1723745506114,16.492,139.64,139.5,11.84]
[1723745506510,0.05216025,139.56,139.53,0.05440802]
[1723745507013,30.72,139.73,139.54,37.8844]
[1723745507220,30.72,139.73,139.58,30.72]
[1723745507411,30.72,139.73,139.59,13.1498]
[1723745507820,100.39850797,139.75,139.61,30.72]
[1723745508318,30.72,139.73,139.6,1.3746]
[1723745508510,0.05372976,139.67,139.65,0.04914297]
[1723745509110,30.72,139.68,139.65,0.04914297]
[1723745509719,0.04525104,139.67,139.65,0.04914297]
[1723745510414,30.72,139.7,139.58,30.72]
[1723745510614,69.67850797,139.75,139.53,7.1648]
[1723745510615,30.72,139.65,139.55,11.84]
[1723745510817,30.72,139.68,139.56,30.72]
[1723745511013,0.04900606,139.67,139.65,0.05240898]
[1723745511609,0.04900606,139.67,139.66,3.5792]
[1723745512119,30.72,139.8,139.63,42.56]
[1723745512317,30.72,139.8,139.65,30.72]
[1723745512812,30.72,139.8,139.64,6.11902409]
[1723745513016,0.05449894,139.68,139.65,0.05187067]
[1723745513222,0.05449894,139.68,139.67,3.5789]
[1723745513817,30.72,139.78,139.65,30.72]
[1723745514017,30.72,139.8,139.67,30.72]
[1723745514219,30.72,139.8,139.76,3.5765]
[1723745514521,30.72,139.8,139.67,30.72]
[1723745514714,30.72,139.83,139.69,30.72]
[1723745514921,30.72,139.83,139.7,11.84]
[1723745515822,34.2949,139.83,139.7,11.84]
[1723745516017,0.0543476,139.78,139.75,0.05297651]
[1723745516412,0.0543476,139.78,139.75,3.62967651]
[1723745516621,30.72,139.8,139.75,3.5767]
[1723745517022,0.04571585,139.78,139.75,0.05394676]
[1723745517421,0.04571585,139.78,139.77,3.5764]
[1723745517921,30.72,139.85,139.82,3.575]
[1723745518117,30.72,139.87,139.73,30.72]
[1723745518519,30.72,139.85,139.73,30.72]
[1723745519318,30.72,139.87,139.73,30.72]
[1723745519519,30.72,139.87,139.83,3.5746]
[1723745520013,30.72,139.87,139.84,3.5745]
[1723745520214,30.72,139.92,139.78,30.76970007]
[1723745520421,30.72,139.92,139.8,30.72]
[1723745520625,0.04992089,139.86,139.8,30.72]
[1723745521022,0.04992089,139.86,139.85,3.5743]
[1723745521223,0.04992089,139.86,139.85,3.62152004]
[1723745521620,0.04992089,139.86,139.85,0.04722004]
[1723745522023,0.04992089,139.86,139.85,3.62152004]
[1723745522226,0.04992089,139.86,139.85,0.04722004]
[1723745522726,0.04992089,139.86,139.85,3.62152004]
[1723745523926,0.04992089,139.86,139.85,0.04722004]
[1723745524422,0.04992089,139.86,139.85,3.62152004]
[1723745524930,0.04992089,139.86,139.85,0.04722004]
[1723745525531,30.76992089,139.86,139.85,0.04722004]
[1723745525726,30.76992089,139.86,139.77,2.7231]
[1723745525922,0.04992089,139.86,139.81,3.5751]
[1723745526129,0.04992089,139.86,139.79,30.72]
[1723745526629,30.72,139.86,139.78,3.62615096]
[1723745526829,30.72,139.84,139.75,11.42]
[1723745527023,30.72,139.87,139.71,1.2852]
[1723745527230,30.72,139.82,139.71,1.2852]
[1723745527821,34.2952,139.82,139.81,0.0491608]
[1723745528030,30.76550865,139.84,139.81,0.0491608]
[1723745528326,0.04550865,139.84,139.81,0.0491608]
[1723745528831,30.72,139.87,139.72,30.72]
[1723745529032,3.5745,139.85,139.72,30.72]
[1723745529239,30.72,139.87,139.72,30.72]
[1723745529526,30.72,139.87,139.7,1.3833]
[1723745529527,3.5767,139.76,139.7,1.3833]
[1723745529728,30.72,139.77,139.69,1.2959]
[1723745530341,30.72,139.74,139.65,1.3624]
[1723745530632,30.72,139.72,139.65,1.3624]
[1723745531039,30.72,139.72,139.64,3.5796]
[1723745531238,30.72,139.77,139.67,0.04609691]
[1723745531635,0.04620045,139.69,139.67,0.04609691]
[1723745531839,0.04620045,139.69,139.61,11.42]
[1723745532039,30.72,139.72,139.61,11.42]
[1723745532337,30.72,139.72,139.67,0.04524853]
[1723745532539,30.72,139.7,139.67,0.04524853]
[1723745532733,30.72,139.7,139.6,1.3624]
[1723745532945,30.72,139.63,139.52,1.2672]
[1723745533451,30.72,139.63,139.56,3.5816]
[1723745533954,3.5797,139.64,139.56,3.5816]
[1723745534251,30.72,139.65,139.52,31.9872]
[1723745534451,3.5801,139.63,139.52,31.9872]
[1723745534656,30.72,139.68,139.55,30.72]
[1723745534842,30.72,139.71,139.58,0.04572901]
[1723745535241,30.72,139.68,139.58,0.04572901]
[1723745535552,0.05385855,139.61,139.58,0.04572901]
[1723745536052,0.05385855,139.61,139.59,3.581]
[1723745536245,30.72,139.66,139.56,11.44]
[1723745536664,30.72,139.64,139.56,11.44]
[1723745536844,30.72,139.61,139.58,0.05155495]
[1723745537154,30.72,139.59,139.45,11.44]
[1723745537354,30.72,139.56,139.45,11.44]
[1723745537556,3.5822,139.55,139.48,3.5836]
[1723745537848,30.72,139.54,139.45,11.44]
[1723745538056,34.3019,139.56,139.49,3.5833]
[1723745538244,30.72,139.56,139.45,42.16]
[1723745538556,3.5822,139.55,139.49,3.5834]
[1723745538750,0.0543776,139.51,139.49,3.5834]
[1723745538955,0.0543776,139.51,139.48,0.05194657]
[1723745539847,0.0543776,139.51,139.48,0.03194657]
[1723745540048,30.72,139.64,139.49,30.72]
[1723745540355,30.72,139.61,139.48,0.03194657]
[1723745540550,30.72,139.58,139.48,0.03194657]
[1723745540752,30.72,139.58,139.45,30.72]
[1723745541152,30.72,139.56,139.44,11.44]
[1723745541457,30.72,139.61,139.47,30.72]
[1723745541651,0.04696872,139.53,139.5,0.04625574]
[1723745542858,0.04696872,139.53,139.5,3.62955574]
[1723745543155,0.04696872,139.53,139.5,0.04625574]
[1723745543355,0.04696872,139.53,139.52,3.5828]
[1723745543555,30.72,139.64,139.5,30.76625574]
[1723745543749,30.72,139.61,139.5,30.76625574]
[1723745543944,3.581,139.59,139.52,3.5828]
[1723745544153,30.72,139.61,139.47,30.72]
[1723745544351,30.72,139.59,139.45,30.72]
[1723745544547,30.72,139.61,139.49,30.72]
[1723745544954,30.72,139.61,139.51,3.62882542]
[1723745544955,0.05492036,139.53,139.51,3.62882542]
[1723745545352,0.05492036,139.53,139.51,0.04582542]
[1723745545553,0.05492036,139.53,139.46,30.72]
[1723745545554,30.72,139.61,139.44,11.44]
[1723745545751,30.72,139.64,139.49,30.72]
[1723745546050,30.72,139.61,139.51,0.05165431]
[1723745546355,30.72,139.61,139.49,30.72]
[1723745546555,3.63578629,139.58,139.55,0.05336731]
[1723745547059,0.05448629,139.58,139.55,0.05336731]
[1723745548753,30.72,139.54,139.4,33.3295]
[1723745549159,30.72,139.52,139.4,2.6095]
[1723745549560,30.72,139.49,139.36,30.72]
[1723745549756,30.72,139.49,139.36,34.30151211]
[1723745550157,3.5831,139.51,139.42,30.72]
[1723745550363,30.72,139.56,139.42,30.72]
[1723745550558,0.04690832,139.47,139.45,0.0534229]
[1723745551359,0.04690832,139.47,139.46,3.5843]
[1723745551559,30.72,139.54,139.42,30.72]
[1723745551860,30.72,139.51,139.39,30.72]
[1723745552060,11.06,139.57,139.37,30.72]
[1723745552061,30.72,139.49,139.37,30.72]
[1723745552255,34.3042,139.47,139.45,0.05153845]
[1723745552462,30.72,139.47,139.35,1.2715]
[1723745552760,30.72,139.43,139.35,1.2715]
[1723745553163,30.72,139.41,139.33,100.0]
[1723745553364,30.72,139.37,139.33,100.0]
[1723745553558,30.72,139.4,139.33,100.0]
[1723745553761,30.72,139.38,139.33,100.0]
[1723745553967,30.72,139.37,139.33,100.0]
[1723745554470,3.5874,139.34,139.33,100.0]
[1723745554767,0.05498217,139.38,139.33,100.0]
[1723745554966,0.05498217,139.38,139.34,0.05339614]
[1723745555269,41.78,139.41,139.34,0.05339614]
[1723745555459,3.5867,139.37,139.34,0.05339614]
[1723745555771,0.04863036,139.37,139.34,0.05339614]
[1723745555963,0.04863036,139.37,139.33,100.0]
[1723745556166,30.72,139.36,139.33,100.0]
[1723745556468,30.72,139.36,139.34,0.05382311]
[1723745556665,3.5871,139.35,139.34,0.05382311]
[1723745557061,34.6171,139.35,139.34,2.311e-05]
[1723745557262,42.11,139.35,139.21,100.0]
[1723745557459,31.03,139.28,139.21,100.0]
[1723745557662,31.03,139.31,139.21,100.0]
[1723745557862,11.08,139.32,139.22,31.03]
[1723745558065,11.08,139.34,139.24,31.03]
[1723745558258,31.03,139.35,139.21,100.0]
[1723745558462,31.03,139.3,139.21,100.0]
[1723745558667,31.03,139.27,139.21,100.0]
[1723745559259,31.03,139.37,139.24,0.02987725]
[1723745559467,31.03,139.27,139.24,0.02987725]
[1723745559965,0.05459323,139.25,139.21,100.0]
[1723745560165,31.03,139.22,139.21,100.0]
[1723745560367,31.03,139.22,139.07,31.03]
[1723745560667,31.03,139.22,139.02,3.9156]
[1723745560668,31.03,139.19,139.05,31.03]
[1723745561064,31.03,139.23,139.02,34.9456]
[1723745561065,31.03,139.16,139.02,34.9456]
[1723745561265,31.03,139.14,139.02,7.5112]
[1723745561461,31.03,139.14,139.02,2.5951]
[1723745561667,31.03,139.11,139.02,2.5951]
[1723745561874,3.595,139.05,139.02,2.5951]
[1723745562068,11.48,139.1,138.71,139.9176]
[1723745562274,3.5964,139.0,138.91,3.5984]
[1723745562475,31.03,139.01,138.87,35.0879]
[1723745562771,31.03,139.01,138.72,26.69680354]
[1723745562772,3.5987,138.91,138.84,3.6003]
[1723745562968,31.03,138.98,138.84,31.03]
[1723745563270,3.5969,138.98,138.89,31.03]
[1723745563571,31.03,139.01,138.85,13.2877]
[1723745563870,7.1836,139.18,138.85,13.2877]
[1723745563871,31.03,139.15,138.93,31.03]
[1723745564065,31.03,139.11,138.97,31.03]
[1723745564266,31.03,139.08,138.94,32.3997]
[1723745564963,31.03,139.03,138.94,1.3697]
[1723745565171,31.03,139.01,138.86,1.322]
[1723745565465,31.03,139.01,138.89,31.03]
[1723745565667,31.03,139.05,138.91,31.03]
[1723745565966,0.0473967,139.02,138.91,31.03]
[1723745566173,31.0773967,139.02,138.88,31.03]
[1723745566371,11.92,139.01,138.88,31.03]
[1723745566562,31.0773967,139.02,138.88,31.03]
[1723745566763,0.0473967,139.02,138.91,31.03]
[1723745566968,36.25135572,139.86,138.86,32.352]
[1723745566969,31.03,139.11,138.96,31.03]
[1723745567178,42.95,139.11,138.96,31.03]
[1723745567373,31.03,139.08,138.95,31.03]
[1723745567572,0.05041091,138.98,138.95,31.03]
[1723745567775,31.03,139.13,138.97,31.03]
[1723745567968,31.03,139.13,139.01,31.03]
[1723745568274,31.03,139.13,139.01,34.6259]
[1723745568472,31.03,139.13,139.01,31.03]
[1723745568873,31.03,139.11,138.97,3.9899]
[1723745569064,31.03,139.11,138.97,35.0199]
[1723745569265,3.5943,139.08,139.0,3.596]
[1723745569465,0.05317238,139.08,139.05,0.04837792]
[1723745570271,31.03,139.07,139.05,0.04837792]
[1723745570776,0.05317238,139.08,139.05,0.04837792]
[1723745571175,69.04464874,139.43,139.06,31.03]
[1723745571399,28.72,139.35,139.23,31.03]
[1723745571873,28.72,139.35,139.15,4.0024]
[1723745571874,12.36,139.34,139.21,31.03]
[1723745572076,3.5877,139.33,139.21,34.6207]
[1723745572376,12.36,139.34,139.15,4.0024]
[1723745572377,31.03,139.27,139.15,4.0024]
[1723745572771,12.76,139.26,139.15,4.0024]
[1723745572972,31.03,139.25,139.15,2.7207]
[1723745573373,34.6197,139.25,139.15,2.7207]
[1723745574079,31.03,139.25,139.15,2.7207]
[1723745574276,31.03,139.2,139.08,1.3243]
[1723745574972,43.79,139.23,139.11,31.03]
[1723745575171,31.03,139.27,139.13,31.03]
[1723745575378,31.03,139.2,139.08,1.3243]
[1723745575583,34.6213,139.2,139.19,0.04706881]
[1723745575780,31.03,139.2,139.08,1.3243]
[1723745575979,31.03,139.17,139.05,2.6374]
[1723745576282,43.79,139.2,139.06,31.03]
[1723745576481,31.03,139.2,139.06,31.03]
[1723745576879,31.03,139.2,139.08,31.03]
[1723745577274,0.05504393,139.21,139.08,31.03]
[1723745577477,12.76,139.26,139.14,31.03]
[1723745577672,31.03,139.27,139.14,31.03]
[1723745578281,31.03,139.27,139.13,1.3732]
[1723745578282,0.05182717,139.16,139.15,3.5923]
[1723745578583,31.03,139.29,139.15,31.03]
[1723745578971,28.72,139.41,139.16,1.372]
[1723745579177,31.03,139.34,139.2,31.03]
[1723745579379,31.03,139.34,139.22,31.03]
[1723745579580,31.03,139.31,139.21,12.76]
[1723745579983,31.03,139.31,139.26,0.05532255]
[1723745579984,0.04810447,139.28,139.26,0.05532255]
[1723745580587,12.76,139.4,139.26,0.05532255]
[1723745580588,31.03,139.34,139.26,0.05532255]
[1723745580773,31.03,139.34,139.26,3.64482255]
[1723745581386,31.03,139.39,139.27,31.03]
[1723745581581,31.03,139.51,139.32,31.03]
[1723745581885,31.03,139.46,139.34,31.03]
[1723745582075,31.03,139.49,139.34,31.03]
[1723745582380,31.03,139.49,139.39,3.5861]
[1723745582584,31.03,139.49,139.36,31.03]
[1723745582784,31.03,139.51,139.36,31.03]
[1723745583080,0.05422366,139.43,139.39,31.03]
[1723745583386,31.03,139.66,139.41,31.03]
[1723745583682,12.76,139.67,139.47,31.03]
[1723745583888,31.03,139.63,139.49,31.03]
[1723745584083,31.03,139.63,139.53,3.5823]
[1723745584383,31.03,139.69,139.54,31.03]
[1723745584595,31.03,139.69,139.6,3.5805]
[1723745584882,12.76,139.78,139.55,14.0943]
[1723745585085,31.03,139.65,139.56,3.5816]
[1723745585281,31.03,139.65,139.55,1.3343]
[1723745585678,0.05261942,139.59,139.58,3.5812]
[1723745585895,12.76,139.7,139.57,31.03]
[1723745585896,31.03,139.7,139.57,31.03]
[1723745586288,31.03,139.7,139.59,31.03]
[1723745586588,100.07448326,139.76,139.63,31.03]
[1723745586781,31.03,139.78,139.66,31.03]
[1723745586984,31.03,139.81,139.68,31.03]
[1723745587192,31.03,139.79,139.65,31.03]
[1723745587487,28.68,139.87,139.7,31.03]
[1723745587679,31.03,139.86,139.73,31.03]
[1723745587883,28.68,139.87,139.75,31.03]
[1723745588095,31.03,139.94,139.66,2.34]
[1723745588096,31.03,139.84,139.72,31.03]
[1723745588281,72.45,139.94,139.69,31.03]
[1723745588484,31.03,139.85,139.71,31.03]
[1723745589187,31.03,139.79,139.67,1.3736]
[1723745589488,31.03,139.73,139.43,31.03]
[1723745589792,31.03,139.7,139.57,31.03]
[1723745590092,31.03,139.68,139.55,32.3643]
[1723745590284,31.03,139.72,139.59,31.03]
[1723745590696,31.03,139.7,139.57,31.03]
[1723745590993,0.05484899,139.65,139.62,3.6256952]
[1723745591291,31.03,139.77,139.64,31.03]
[1723745591488,31.03,139.79,139.66,31.03]
[1723745591701,31.03,139.74,139.62,0.0456952]
[1723745591881,31.03,139.7,139.62,0.0456952]
[1723745592094,31.03,139.8,139.52,32.3152]
[1723745592095,31.03,139.64,139.52,32.3152]
[1723745592795,31.03,139.62,139.52,1.2852]
[1723745592983,31.03,139.57,139.49,28.66]
[1723745593290,31.03,139.55,139.44,1.3271]
[1723745593591,31.03,139.51,139.36,43.75]
[1723745593794,31.03,139.55,139.41,31.03]
[1723745594087,31.03,139.6,139.48,31.03]
[1723745594289,31.03,139.58,139.48,3.5836]
[1723745594488,31.03,139.56,139.44,31.03]
[1723745594791,31.03,139.56,139.52,0.05181032]
[1723745595183,62.06,139.53,139.37,1.0]
[1723745595388,3.5854,139.42,139.37,1.0]
[1723745595589,31.03,139.41,139.37,1.0]
[1723745595794,34.615,139.44,139.36,3.5867]
[1723745595992,34.615,139.44,139.31,31.03]
[1723745595993,31.03,139.44,139.31,31.03]
[1723745596493,31.03,139.41,139.29,31.03]
[1723745596685,31.03,139.44,139.29,31.03]
[1723745596884,0.05337597,139.51,139.37,31.03]
[1723745597185,31.08337597,139.51,139.38,0.05009598]
[1723745597390,34.6131,139.51,139.39,31.03]
[1723745597696,31.03,139.56,139.42,31.03]
[1723745597990,3.582,139.55,139.42,31.03]
[1723745598191,0.05214967,139.46,139.44,31.03]
[1723745598390,34.611,139.6,139.51,3.5828]
[1723745598590,31.03,139.58,139.46,31.03]
[1723745598791,31.03,139.58,139.44,31.03]
[1723745598995,31.03,139.61,139.48,0.05281658]
[1723745599289,31.03,139.65,139.51,31.03]
[1723745599491,31.03,139.68,139.54,31.03]
[1723745599690,28.66,139.84,139.64,31.03]
[1723745599892,31.03,139.74,139.58,1.2723]
[1723745600096,31.03,139.71,139.58,1.2723]
[1723745600398,31.03,139.66,139.53,31.03]
[1723745600595,31.03,139.66,139.49,2.7445]
[1723745600596,31.03,139.64,139.5,31.03]
[1723745600890,31.03,139.61,139.49,2.7445]
[1723745601090,3.582,139.55,139.49,2.7445]
[1723745601292,13.14,139.54,139.49,2.7445]
[1723745601495,31.03,139.59,139.49,2.7445]
[1723745601690,28.64,139.59,139.5,3.5831]
[1723745601893,13.14,139.6,139.56,0.05350042]
[1723745602290,31.03,139.61,139.56,0.05350042]
[1723745602493,13.14,139.6,139.56,0.05350042]
[1723745602796,3.5815,139.57,139.56,0.05350042]
[1723745603294,3.5822,139.55,139.49,6.328]
[1723745603489,44.17,139.59,139.49,2.7445]
[1723745603691,31.03,139.59,139.49,2.7445]
[1723745603885,3.5815,139.58,139.51,3.583]
[1723745604196,31.03,139.59,139.55,0.04784651]
[1723745604492,31.03,139.62,139.55,0.04784651]
[1723745604693,44.17,139.66,139.55,0.04784651]
[1723745604891,28.64,139.69,139.57,31.03]
[1723745604892,0.05046091,139.58,139.57,31.03]
[1723745605091,31.03,139.75,139.57,62.06]
[1723745605292,31.03,139.78,139.64,31.03]
[1723745605492,64.66198414,139.76,139.68,3.5784]
[1723745605693,64.66198414,139.76,139.66,31.03]
[1723745605694,61.08518414,139.76,139.66,31.03]
[1723745605890,61.08518414,139.76,139.64,31.03]
[1723745606088,3.5769,139.75,139.67,3.5787]
[1723745606294,61.08518414,139.76,139.64,31.03]
[1723745606899,31.03,139.75,139.61,31.03]
[1723745607200,0.04830214,139.71,139.69,0.0530882]
[1723745607894,31.03,139.94,139.69,0.0530882]